bitfinex/quotes_SOLUSD_20260306
["timestamp","ask_amount","ask_price","bid_price","bid_amount"]
[1772802902421,11.55229849,86.563,86.531,1.25606347]
[1772802902602,12.56113623,86.571,86.533,1.25820074]
[1772802903837,1.01002876,86.57,86.533,1.25820074]
[1772802905134,11.55147916,86.569,86.534,11.55615133]
[1772802905428,1.01002876,86.57,86.534,11.55615133]
[1772802905429,1.01002876,86.57,86.535,1.25820074]
[1772802905621,62.2,86.583,86.537,1.25820074]
[1772802906010,1.01025639,86.582,86.537,1.25820074]
[1772802906317,1.01025639,86.581,86.537,1.25820074]
[1772802906616,1.01038929,86.569,86.534,12.81435207]
[1772802906830,1.01038929,86.559,86.53,0.2]
[1772802907127,1.01038929,86.557,86.531,11.55655198]
[1772802908034,1.01052044,86.549,86.522,1.25820074]
[1772802909835,1.01074525,86.548,86.524,1.25820074]
[1772802911036,12.56502726,86.548,86.524,1.25820074]
[1772802911721,1.00943808,86.545,86.524,1.25820074]
[1772802911917,1.00943808,86.545,86.52,0.2]
[1772802912124,1.00943808,86.545,86.521,1.25820074]
[1772802912341,1.00943808,86.545,86.522,1.25820074]
[1772802913035,1.00943808,86.545,86.52,0.2]
[1772802913339,1.00943808,86.545,86.52,1.45820074]
[1772802913851,12.56297455,86.544,86.52,1.45820074]
[1772802914314,1.00815851,86.543,86.52,1.45820074]
[1772802916234,28.88637256,86.546,86.52,1.45820074]
[1772802916642,1.00625384,86.545,86.52,1.45820074]
[1772802917143,1.00625384,86.545,86.522,1.25820074]
[1772802918219,11.55481604,86.544,86.522,1.25820074]
[1772802918417,1.00565416,86.543,86.522,1.25820074]
[1772802919615,11.55414851,86.549,86.523,1.25820074]
[1772802919935,1.00443673,86.562,86.523,1.25820074]
[1772802920520,3.41726877,86.56,86.523,1.25820074]
[1772802920827,3.41726877,86.56,86.522,40.45204504]
[1772802920828,1.00384159,86.558,86.525,1.25820074]
[1772802923040,1.00267352,86.556,86.527,1.25820074]
[1772802925141,1.00155194,86.569,86.529,1.25820074]
[1772802925340,1.00155194,86.568,86.529,1.25820074]
[1772802927739,0.99993428,86.566,86.531,1.25820074]
[1772802928044,40.43111115,86.567,86.531,1.25820074]
[1772802928045,0.99993428,86.559,86.531,1.25820074]
[1772802929034,11.55294715,86.558,86.531,1.25820074]
[1772802929237,0.99939044,86.557,86.531,1.25820074]
[1772802929441,0.99939044,86.557,86.529,11.27784733]
[1772802931332,11.5532141,86.556,86.53,1.25820074]
[1772802931533,1.1833479,86.555,86.53,1.25820074]
[1772802931828,11.55279814,86.56,86.532,1.21609777]
[1772802932146,11.55208117,86.565,86.532,1.21609777]
[1772802932740,1.16988232,86.564,86.532,1.21609777]
[1772802933343,1.16988232,86.564,86.534,1.21609777]
[1772802933968,1.16988232,86.562,86.534,1.21609777]
[1772802934350,1.16988232,86.562,86.533,11.55628488]
[1772802934758,1.16988232,86.562,86.534,1.21609777]
[1772802938268,1.16988232,86.566,86.536,1.21609777]
[1772802941062,12.72189525,86.565,86.538,1.21609777]
[1772802941455,1.16988232,86.564,86.538,1.21609777]
[1772802944168,1.16988232,86.564,86.54,1.21609777]
[1772802944466,11.55227984,86.563,86.54,1.21609777]
[1772802944645,12.72216216,86.563,86.54,1.21609777]
[1772802945762,11.5518089,86.567,86.54,1.21609777]
[1772802945969,1.16988232,86.588,86.54,1.21609777]
[1772802946167,62.2,86.592,86.53,0.28432314]
[1772802946168,1.16988232,86.586,86.542,1.21609777]
[1772802947360,1.16988232,86.579,86.542,1.21609777]
[1772802947970,1.16988232,86.569,86.542,1.21609777]
[1772802948555,1.16988232,86.569,86.531,28.89110476]
[1772802948556,1.16988232,86.567,86.543,12.77104733]
[1772802948767,1.16988232,86.567,86.544,1.21609777]
[1772802952074,11.5516126,86.568,86.546,1.21609777]
[1772802952268,12.72083387,86.573,86.546,1.21609777]
[1772802952469,1.16988232,86.573,86.546,1.21609777]
[1772802952663,28.87644174,86.696,86.546,1.21609777]
[1772802952664,1.16988232,86.583,86.546,1.21609777]
[1772802954653,1.15160318,86.592,86.548,1.5473218]
[1772802954854,1.15160318,86.589,86.548,1.40516023]
[1772802957577,1.15160318,86.587,86.55,1.26299866]
[1772802958078,62.2,86.617,86.552,1.26299866]
[1772802958079,1.15160318,86.604,86.552,1.26299866]
[1772802958285,1.15160318,86.604,86.556,1.26299866]
[1772802958286,12.69841395,86.604,86.556,1.26299866]
[1772802958666,1.15160318,86.603,86.556,1.26299866]
[1772802960177,11.54707743,86.602,86.557,40.43578219]
[1772802960383,1.15160318,86.601,86.558,1.5473218]
[1772802962187,3.41437519,86.6,86.558,1.5473218]
[1772802962382,1.2036537,86.598,86.56,1.25604443]
[1772802963571,1.2036537,86.589,86.56,1.25604443]
[1772802963795,3.41437519,86.58,86.552,1.25604443]
[1772802963977,1.2036537,86.579,86.551,11.55380319]
[1772802964492,1.2036537,86.577,86.551,1.25604443]
[1772802966990,1.2036537,86.585,86.553,1.25604443]
[1772802968788,1.2036537,86.585,86.554,11.55348106]
[1772802968983,1.2036537,86.585,86.555,1.25604443]
[1772802969295,1.2036537,86.583,86.555,1.25604443]
[1772802971092,1.2036537,86.583,86.556,11.5532141]
[1772802971285,1.2036537,86.583,86.557,1.25604443]
[1772802971594,1.2036537,86.581,86.557,1.25604443]
[1772802973489,1.2036537,86.598,86.559,1.25604443]
[1772802973688,1.2036537,86.598,86.559,1.54036757]
[1772802973925,62.2,86.614,86.561,3.69383402]
[1772802974080,7.2357283,86.615,86.564,1.25604443]
[1772802974995,6.72429251,86.615,86.565,1.25604443]
[1772802975178,3.51437519,86.65,86.565,1.25604443]
[1772802975179,11.54261775,86.636,86.611,1.25604443]
[1772802975379,11.54261775,86.636,86.613,1.25604443]
[1772802975780,12.74627145,86.636,86.613,1.25604443]
[1772802975977,1.2036537,86.635,86.613,1.25604443]
[1772802978202,1.2036537,86.635,86.614,11.54547763]
[1772802978393,1.2036537,86.635,86.614,12.80152206]
[1772802978793,1.2036537,86.635,86.615,1.25604443]
[1772802981184,1.2036537,86.634,86.61,11.54597289]
[1772802981690,1.2036537,86.634,86.61,12.80201732]
[1772802982505,11.54294552,86.633,86.611,1.25604443]
[1772802982709,1.2036537,86.632,86.605,1.25604443]
[1772802984897,11.54321201,86.631,86.606,11.54654411]
[1772802985102,1.2036537,86.63,86.606,11.54654411]
[1772802985685,3.51437519,86.65,86.607,1.25604443]
[1772802985909,11.54081408,86.649,86.607,1.54036757]
[1772802986304,0.1,86.65,86.61,1.25604443]
[1772802987311,0.1,86.65,86.615,1.25604443]
[1772802987516,0.1,86.65,86.615,1.54036757]
[1772802989512,0.1,86.65,86.617,1.54036757]
[1772802991120,0.1,86.66,86.618,1.25604443]
[1772802991611,1.3036537,86.66,86.62,1.49214334]
[1772802991808,1.23678462,86.659,86.62,1.49214334]
[1772802992402,1.23678462,86.659,86.62,1.2078202]
[1772802993116,1.23678462,86.659,86.619,11.54481118]
[1772802993698,1.23678462,86.657,86.615,11.54534433]
[1772802993894,40.38865425,86.658,86.616,1.2078202]
[1772802994098,62.2,86.699,86.616,1.2078202]
[1772802994099,1.23678462,86.673,86.617,1.2078202]
[1772802994301,1.23678462,86.673,86.617,1.49214334]
[1772802995217,1.23678462,86.669,86.617,1.49214334]
[1772802995601,40.38399408,86.668,86.618,40.40730563]
[1772802995808,1.23678462,86.667,86.619,1.49214334]
[1772802997400,1.23678462,86.667,86.619,1.2078202]
[1772802997612,1.23678462,86.649,86.618,11.54494446]
[1772802997813,1.23678462,86.647,86.608,28.86549087]
[1772802998016,1.23678462,86.647,86.609,1.2078202]
[1772802998208,1.23678462,86.647,86.609,1.49214334]
[1772802999821,1.23678462,86.647,86.611,1.2078202]
[1772803000121,1.23678462,86.645,86.611,1.2078202]
[1772803002925,1.23678462,86.643,86.612,11.54574423]
[1772803003628,1.23678462,86.648,86.613,1.2078202]
[1772803005124,1.23678462,86.646,86.614,11.54547763]
[1772803006013,1.23678462,86.646,86.615,1.2078202]
[1772803007107,1.23678462,86.644,86.616,11.54521104]
[1772803007426,1.23678462,86.644,86.617,1.2078202]
[1772803008826,1.23678462,86.642,86.611,1.2078202]
[1772803010822,1.23678462,86.64,86.613,1.2078202]
[1772803011525,1.23678462,86.64,86.608,12.75405612]
[1772803011722,1.23678462,86.639,86.608,11.54623592]
[1772803012331,1.23678462,86.639,86.609,1.2078202]
[1772803013130,1.23678462,86.637,86.611,1.2078202]
[1772803013330,1.23678462,86.647,86.611,1.2078202]
[1772803015220,1.23678462,86.647,86.613,1.23047925]
[1772803017132,1.25649493,86.646,86.612,28.86436059]
[1772803017320,3.41437519,86.65,86.608,1.51480239]
[1772803017321,1.25649493,86.644,86.608,1.51480239]
[1772803018227,1.25649493,86.644,86.608,1.23047925]
[1772803018438,11.54080717,86.65,86.608,1.23047925]
[1772803018618,1.25649493,86.657,86.608,1.51480239]
[1772803019317,1.25649493,86.657,86.613,1.51480239]
[1772803019520,1.25649493,86.681,86.613,1.51480239]
[1772803019725,3.41437519,86.68,86.613,1.51480239]
[1772803019919,1.25649493,86.679,86.613,1.51480239]
[1772803021942,1.25930882,86.677,86.614,98.1365599]
[1772803022240,1.25930882,86.677,86.618,1.5531866]
[1772803023533,1.25930882,86.675,86.623,1.5531866]
[1772803026339,1.25930882,86.673,86.628,1.5531866]
[1772803028841,1.25930882,86.669,86.63,1.26886346]
[1772803029149,1.25930882,86.649,86.592,1.26886346]
[1772803029326,40.38213032,86.672,86.592,1.26886346]
[1772803029327,1.25930882,86.639,86.592,1.26886346]
[1772803030226,1.25930882,86.629,86.592,1.26886346]
[1772803030426,3.69383402,86.669,86.587,11.5490778]
[1772803030427,1.25930882,86.619,86.587,11.5490778]
[1772803030828,1.25930882,86.618,86.588,0.28432314]
[1772803031037,1.25930882,86.618,86.587,11.5490778]
[1772803031342,1.25930882,86.618,86.588,0.28432314]
[1772803031522,1.25930882,86.618,86.587,11.5490778]
[1772803031722,1.25930882,86.609,86.587,11.5490778]
[1772803032846,1.25930882,86.607,86.578,11.55027836]
[1772803033925,1.25930882,86.607,86.578,12.81914182]
[1772803034738,1.25930882,86.607,86.58,11.55001155]
[1772803035022,1.25930882,86.607,86.581,1.26886346]
[1772803036454,1.25930882,86.62,86.581,1.5531866]
[1772803036833,1.25930882,86.62,86.584,1.26886346]
[1772803037347,1.25930882,86.619,86.584,1.26886346]
[1772803039341,1.25930882,86.617,86.586,1.5531866]
[1772803041442,1.25930882,86.617,86.588,0.28432314]
[1772803042653,1.25930882,86.617,86.589,1.26886346]
[1772803043241,1.25930882,86.617,86.587,11.5490778]
[1772803043446,1.25930882,86.615,86.578,40.42591326]
[1772803043646,1.25930882,86.615,86.579,1.26886346]
[1772803044147,1.25930882,86.615,86.579,1.5531866]
[1772803045766,1.25930882,86.613,86.581,1.26886346]
[1772803048763,11.54574423,86.612,86.582,11.54974475]
[1772803048968,1.25930882,86.611,86.582,11.54974475]
[1772803049553,1.25930882,86.609,86.582,11.54974475]
[1772803049756,3.40825249,86.6,86.577,1.10113432]
[1772803049956,3.40825249,86.59,86.556,12.82207756]
[1772803050275,1.25930882,86.589,86.556,12.82207756]
[1772803051468,1.25930882,86.587,86.556,12.82207756]
[1772803051964,1.25930882,86.587,86.556,11.5532141]
[1772803052346,1.17463164,86.585,86.553,28.88398606]
[1772803053265,1.17463164,86.585,86.554,1.17860776]
[1772803054575,1.17463164,86.585,86.556,1.17860776]
[1772803055576,32.27682605,86.6,86.555,40.43671653]
[1772803055577,1.17463164,86.583,86.555,40.43671653]
[1772803056870,1.17463164,86.583,86.555,28.88336895]
[1772803058067,1.17463164,86.581,86.551,1.17860776]
[1772803058274,1.17463164,86.581,86.55,11.55401502]
[1772803058569,1.17463164,86.579,86.55,11.55401502]
[1772803058956,1.17463164,86.577,86.54,1.17860776]
[1772803061455,1.17463164,86.575,86.54,1.17860776]
[1772803061955,12.72462946,86.581,86.54,1.17860776]
[1772803062164,1.17463164,86.58,86.54,1.17860776]
[1772803063875,1.17463164,86.578,86.542,1.17860776]
[1772803067161,1.17463164,86.578,86.544,1.17860776]
[1772803068779,11.55041177,86.577,86.544,1.17860776]
[1772803068986,1.17463164,86.576,86.544,1.17860776]
[1772803069565,1.17463164,86.576,86.546,1.17860776]
[1772803069865,1.17463164,86.587,86.546,1.4629309]
[1772803070378,1.17463164,86.587,86.549,1.4629309]
[1772803070583,1.17463164,86.594,86.549,1.4629309]
[1772803071078,12.72197575,86.6,86.549,1.4629309]
[1772803071384,1.17463164,86.599,86.549,1.4629309]
[1772803071782,1.17463164,86.599,86.554,1.4629309]
[1772803072782,1.17463164,86.599,86.558,3.69383402]
[1772803072973,1.17463164,86.599,86.559,1.4629309]
[1772803073280,1.17463164,86.599,86.559,1.32076933]
[1772803074379,1.22467773,86.597,86.559,0.14216157]
[1772803074586,1.22467773,86.589,86.555,11.55334758]
[1772803075284,1.22467773,86.579,86.548,11.55428201]
[1772803075485,1.22467773,86.559,86.53,0.2]
[1772803075790,1.22467773,86.549,86.53,0.2]
[1772803076783,1.22467773,86.549,86.524,8.73650293]
[1772803077088,1.22467773,86.549,86.52,11.75793747]
[1772803077885,1.22467773,86.547,86.52,11.75793747]
[1772803079489,1.22467773,86.545,86.521,1.26243831]
[1772803080385,1.22467773,86.559,86.521,1.26243831]
[1772803080762,1.22467773,86.578,86.521,1.54676145]
[1772803081086,1.22467773,86.578,86.52,40.65299063]
[1772803081087,1.22467773,86.578,86.524,1.54676145]
[1772803081461,1.26046964,86.576,86.526,1.51864086]
[1772803081669,1.26046964,86.576,86.529,1.51864086]
[1772803082070,1.26046964,86.569,86.529,1.51864086]
[1772803083475,1.26046964,86.559,86.529,1.23431772]
[1772803083675,1.26046964,86.557,86.531,1.23431772]
[1772803085488,11.55294715,86.558,86.531,1.23431772]
[1772803085682,11.55243741,86.562,86.533,1.23431772]
[1772803085988,1.26046964,86.561,86.533,1.23431772]
[1772803088077,1.26046964,86.559,86.527,11.55699381]
[1772803088592,1.26046964,86.559,86.528,1.23431772]
[1772803088779,1.26046964,86.559,86.528,1.51864086]
[1772803090180,1.26046964,86.563,86.53,1.23431772]
[1772803091000,1.26046964,86.559,86.52,0.2]
[1772803091691,1.26046964,86.549,86.52,0.2]
[1772803092074,1.26046964,86.542,86.52,11.75797748]
[1772803093078,1.26046964,86.538,86.52,0.2]
[1772803093279,1.26046964,86.536,86.504,1.23431772]
[1772803093779,1.26046964,86.529,86.5,0.2]
[1772803094019,1.26046964,86.529,86.501,22.14]
[1772803094193,1.26046964,86.526,86.501,22.14]
[1772803094498,1.26046964,86.526,86.502,11.56042634]
[1772803095488,1.26046964,86.526,86.501,22.14]
[1772803095692,1.06042628,86.517,86.49,0.2]
[1772803095996,0.19999193,86.518,86.483,11.56293832]
[1772803095997,0.86042628,86.509,86.483,11.56293832]
[1772803096183,0.86042628,86.507,86.483,11.56293832]
[1772803097095,11.55962454,86.508,86.43,0.2]
[1772803097096,3.41735781,86.49,86.43,0.2]
[1772803097295,3.41735781,86.47,86.446,11.5678379]
[1772803097494,3.41735781,86.47,86.43,0.2]
[1772803097495,3.41735781,86.48,86.451,11.56724618]
[1772803098280,11.56350096,86.479,86.451,11.56724618]
[1772803098482,11.56350096,86.479,86.452,1.27264961]
[1772803098684,11.56042634,86.502,86.452,1.27264961]
[1772803099203,0.19999193,86.478,86.452,1.27264961]
[1772803100700,0.19999193,86.478,86.454,1.27264961]
[1772803102303,0.19999193,86.478,86.456,1.27264961]
[1772803102703,11.5613785,86.495,86.456,1.27264961]
[1772803103106,11.5613785,86.495,86.456,1.55697275]
[1772803103309,11.56075882,86.5,86.456,1.55697275]
[1772803103490,0.28432314,86.53,86.459,1.55697275]
[1772803103491,11.55788768,86.521,86.459,1.55697275]
[1772803103689,11.55724788,86.526,86.459,1.55697275]
[1772803104208,8.55721686,86.54,86.459,1.55697275]
[1772803104404,57.76052318,86.565,86.464,1.55697275]
[1772803104711,11.55736944,86.525,86.464,1.55697275]
[1772803104909,8.55721686,86.55,86.465,1.27264961]
[1772803105209,8.55721686,86.55,86.463,3.69383402]
[1772803105210,8.55721686,86.55,86.471,1.27264961]
[1772803106107,8.55721686,86.56,86.471,1.27264961]
[1772803106605,40.43484789,86.559,86.475,3.69383402]
[1772803106798,40.43484789,86.559,86.476,1.55697275]
[1772803106985,40.43484789,86.559,86.482,1.27264961]
[1772803107791,11.55281368,86.559,86.482,1.27264961]
[1772803108810,40.43484789,86.559,86.483,98.28521212]
[1772803108994,40.43484789,86.559,86.487,1.27264961]
[1772803110022,40.43484789,86.559,86.492,1.27264961]
[1772803110311,40.43484789,86.559,86.492,1.55697275]
[1772803111606,0.02094589,86.558,86.497,1.55697275]
[1772803113826,0.02094589,86.558,86.499,1.55697275]
[1772803114001,11.55281368,86.559,86.499,1.55697275]
[1772803114820,11.55147916,86.569,86.504,1.27264961]
[1772803115027,11.57739994,86.569,86.504,1.55697275]
[1772803115196,0.02592078,86.568,86.504,1.55697275]
[1772803116806,0.02592078,86.568,86.506,1.55697275]
[1772803120411,0.02592078,86.568,86.508,1.55697275]
[1772803121317,0.03298621,86.549,86.508,1.27264961]
[1772803121714,0.03298621,86.549,86.508,1.55697275]
[1772803122723,0.03298621,86.549,86.51,1.27264961]
[1772803125810,0.03298621,86.549,86.512,1.27264961]
[1772803126012,0.03851112,86.556,86.512,1.55697275]
[1772803126211,11.55281368,86.559,86.512,1.55697275]
[1772803126403,0.03851112,86.575,86.512,1.55697275]
[1772803127904,0.03851112,86.575,86.517,1.27264961]
[1772803128224,0.03851112,86.575,86.517,1.55697275]
[1772803129725,40.42690814,86.576,86.517,1.55697275]
[1772803129726,0.04269524,86.559,86.517,1.55697275]
[1772803130023,46.19828588,86.584,86.515,12.83133885]
[1772803130024,0.04269524,86.548,86.515,12.83133885]
[1772803131117,11.55414851,86.549,86.516,1.55697275]
[1772803131325,11.55365971,86.553,86.516,1.55697275]
[1772803131518,0.04370496,86.555,86.516,1.55697275]
[1772803131913,11.55316734,86.557,86.516,1.55697275]
[1772803132723,0.04472823,86.561,86.519,1.27264961]
[1772803133632,11.55147916,86.569,86.519,1.27264961]
[1772803136120,0.04960391,86.575,86.521,1.55697275]
[1772803138237,0.04960391,86.575,86.523,1.55697275]
[1772803139239,0.04960391,86.575,86.525,1.55697275]
[1772803139619,11.55054518,86.576,86.529,1.27264961]
[1772803141235,11.55054518,86.576,86.53,40.44839939]
[1772803141440,11.55054518,86.576,86.534,1.55697275]
[1772803142623,11.55054518,86.576,86.536,1.55697275]
[1772803142927,0.25674561,86.569,86.535,11.55601779]
[1772803143440,0.25674561,86.569,86.531,11.55652273]
[1772803144623,0.2577428,86.567,86.499,0.28432314]
[1772803144826,0.2577428,86.567,86.502,0.28432314]
[1772803145025,0.2577428,86.567,86.503,1.24071621]
[1772803146440,11.5508935,86.574,86.503,1.24071621]
[1772803146737,11.55054518,86.576,86.51,1.24071621]
[1772803147048,0.26067854,86.575,86.51,1.24071621]
[1772803148633,0.26164697,86.573,86.515,1.24071621]
[1772803148827,0.26164697,86.573,86.515,1.52503935]
[1772803150124,7.19158442,86.577,86.519,1.24071621]
[1772803150444,7.19158442,86.577,86.519,1.52503935]
[1772803150626,7.19158442,86.577,86.524,1.24071621]
[1772803150935,7.19158442,86.577,86.524,1.52503935]
[1772803151734,0.26362613,86.597,86.529,1.52503935]
[1772803152036,0.26362613,86.597,86.534,1.24071621]
[1772803152241,0.26372298,86.604,86.539,1.24071621]
[1772803152540,11.54614416,86.609,86.539,1.52503935]
[1772803152742,0.26372298,86.611,86.549,1.24071621]
[1772803152928,0.26372298,86.611,86.549,1.52503935]
[1772803153246,11.54536942,86.615,86.549,1.52503935]
[1772803153542,0.26381442,86.618,86.549,1.52503935]
[1772803153742,0.26381442,86.632,86.559,1.24071621]
[1772803153946,11.54214614,86.639,86.569,1.24071621]
[1772803154844,11.54214614,86.639,86.574,1.52503935]
[1772803156344,0.26410286,86.638,86.574,1.52503935]
[1772803156727,3.41556653,86.64,86.574,1.52503935]
[1772803156728,0.26410286,86.636,86.579,1.52503935]
[1772803156930,0.26418852,86.629,86.579,1.52503935]
[1772803158731,0.26427466,86.627,86.584,1.24071621]
[1772803158928,0.1,86.65,86.584,1.52503935]
[1772803158929,0.26436023,86.643,86.584,1.52503935]
[1772803159755,0.1,86.65,86.584,1.52503935]
[1772803159756,0.1,86.65,86.589,1.24071621]
[1772803160053,0.1,86.65,86.589,1.52503935]
[1772803160255,0.1,86.65,86.591,1.24071621]
[1772803160440,0.1,86.65,86.591,1.52503935]
[1772803160629,0.1,86.65,86.593,1.24071621]
[1772803160833,0.1,86.65,86.601,1.24071621]
[1772803161435,0.36453605,86.67,86.611,1.24071621]
[1772803161436,0.1,86.67,86.611,1.24071621]
[1772803162557,0.26461706,86.669,86.611,1.24071621]
[1772803162944,0.26469848,86.668,86.616,1.52503935]
[1772803163249,0.1,86.67,86.616,1.52503935]
[1772803163449,0.26469848,86.669,86.616,1.52503935]
[1772803164339,0.26478153,86.659,86.616,1.24071621]
[1772803164940,0.26486285,86.657,86.617,11.54507775]
[1772803165758,0.26486285,86.657,86.618,0.14216157]
[1772803165947,0.1,86.67,86.621,1.38287778]
[1772803166152,0.26494602,86.668,86.621,1.38287778]
[1772803166354,0.26494602,86.668,86.621,1.24071621]
[1772803167344,0.26502517,86.666,86.623,1.52503935]
[1772803167955,0.1,86.67,86.623,1.52503935]
[1772803168362,11.53815089,86.669,86.623,1.52503935]
[1772803168763,11.53815089,86.669,86.627,1.24071621]
[1772803168944,0.26517686,86.668,86.627,1.24071621]
[1772803169462,0.26517686,86.666,86.629,0.28432314]
[1772803170162,0.1,86.67,86.629,1.52503935]
[1772803171056,11.53815089,86.669,86.629,1.52503935]
[1772803171849,0.26546204,86.669,86.63,11.54334526]
[1772803172050,0.26546204,86.659,86.606,1.46223257]
[1772803172251,0.26546204,86.659,86.613,1.17790943]
[1772803174468,0.26559631,86.657,86.615,1.46223257]
[1772803174963,0.1,86.67,86.615,1.46223257]
[1772803175146,0.36568462,86.67,86.618,1.46223257]
[1772803175568,0.26568462,86.668,86.618,1.46223257]
[1772803176851,0.26582129,86.666,86.62,1.17790943]
[1772803178567,0.1,86.67,86.62,1.46223257]
[1772803178873,0.1,86.67,86.628,1.17790943]
[1772803179190,0.26595652,86.669,86.628,1.46223257]
[1772803181178,11.53828402,86.668,86.63,1.17790943]
[1772803183764,11.53828402,86.668,86.632,1.17790943]
[1772803185265,11.80464397,86.668,86.632,1.17790943]
[1772803185860,0.1,86.67,86.631,40.40124204]
[1772803185861,0.2664216,86.665,86.633,12.72085495]
[1772803186077,0.2664216,86.665,86.633,11.54294552]
[1772803186557,11.63811881,86.67,86.634,1.17790943]
[1772803187379,11.90459578,86.67,86.634,1.17790943]
[1772803188100,0.26653195,86.669,86.636,1.17790943]
[1772803188688,0.26653195,86.669,86.62,1.17790943]
[1772803188892,0.1,86.67,86.62,1.17790943]
[1772803188893,0.26661185,86.659,86.62,1.17790943]
[1772803189088,8.52097313,86.65,86.613,1.17790943]
[1772803189397,0.26661185,86.649,86.613,1.17790943]
[1772803190794,0.1,86.67,86.618,1.46223257]
[1772803191776,11.53815089,86.669,86.618,1.46223257]
[1772803192273,0.26679775,86.668,86.623,1.46223257]
[1772803193598,0.1,86.67,86.623,1.46223257]
[1772803193904,0.26690587,86.669,86.623,1.46223257]
[1772803194294,11.53828402,86.668,86.627,3.69383402]
[1772803194601,11.53828402,86.668,86.628,1.46223257]
[1772803194807,0.26699774,86.667,86.628,1.46223257]
[1772803195308,0.26699774,86.667,86.625,1.25808856]
[1772803195594,0.26699774,86.667,86.625,1.5424117]
[1772803195903,0.26705255,86.659,86.624,11.5441448]
[1772803196092,8.52097313,86.65,86.614,11.54547763]
[1772803196407,11.54081408,86.649,86.614,11.54547763]
[1772803197077,8.52097313,86.63,86.604,9.0034865]
[1772803197404,8.52097313,86.63,86.592,1.30618102]
[1772803197603,8.52097313,86.64,86.592,1.30618102]
[1772803197899,40.3928493,86.649,86.592,1.30618102]
[1772803198292,40.3975115,86.639,86.594,1.59050416]
[1772803198488,40.3975115,86.639,86.594,1.30618102]
[1772803199601,8.52097313,86.63,86.594,1.30618102]
[1772803200405,11.54347851,86.629,86.595,11.54801085]
[1772803202492,8.53054279,86.63,86.595,11.54801085]
[1772803204794,11.54347851,86.629,86.595,1.30618102]
[1772803205205,40.40217478,86.629,86.582,1.30618102]
[1772803206187,40.40217478,86.629,86.577,11.5503574]
[1772803206188,8.53054279,86.62,86.577,11.5503574]
[1772803206393,8.53054279,86.61,86.577,11.5503574]
[1772803206594,8.53054279,86.61,86.559,3.69383402]
[1772803206595,8.53054279,86.61,86.568,11.55154381]
[1772803206800,11.54747745,86.599,86.568,11.55154381]
[1772803207208,40.41617108,86.599,86.558,12.85912743]
[1772803207411,8.53054279,86.59,86.558,1.30618102]
[1772803207613,8.53054279,86.59,86.55,1.30618102]
[1772803207792,40.41617108,86.599,86.52,0.2]
[1772803207793,8.53054279,86.57,86.54,11.55524317]
[1772803208106,8.53054279,86.58,86.543,11.55482013]
[1772803208505,8.53054279,86.58,86.541,1.30618102]
[1772803208707,8.53054279,86.57,86.534,1.30618102]
[1772803208908,40.43017707,86.569,86.534,1.30618102]
[1772803209304,8.53054279,86.56,86.525,1.30618102]
[1772803209488,8.53054279,86.56,86.525,12.86346018]
[1772803209694,40.43017707,86.569,86.52,11.75794592]
[1772803209990,8.53054279,86.55,86.52,0.2]
[1772803210196,8.53054279,86.54,86.503,1.30618102]
[1772803210808,8.53054279,86.53,86.503,1.30618102]
[1772803211015,11.5568191,86.529,86.502,11.56033336]
[1772803211514,40.44886685,86.529,86.504,1e-08]
[1772803214148,8.53054279,86.52,86.504,1e-08]
[1772803214909,3.69383402,86.565,86.504,1e-08]
[1772803215124,8.53054279,86.54,86.504,1e-08]
[1772803215923,8.53054279,86.53,86.504,1e-08]
[1772803216092,11.5568191,86.529,86.504,1e-08]
[1772803216914,8.53054279,86.52,86.5,1e-08]
[1772803217718,40.44886685,86.529,86.5,1e-08]
[1772803218704,8.53054279,86.52,86.5,1e-08]
[1772803218912,8.53054279,86.51,86.5,1e-08]
[1772803220612,11.55949092,86.509,86.5,1e-08]
[1772803220811,8.53054279,86.49,86.453,1.30618102]
[1772803221014,8.53054279,86.49,86.464,11.56540402]
[1772803221318,40.45821822,86.509,86.469,1.30618102]
[1772803221719,8.53054279,86.5,86.468,51.94]
[1772803222601,8.53054279,86.49,86.468,51.94]
[1772803222817,11.56216397,86.489,86.468,51.94]
[1772803223015,11.56216397,86.489,86.451,1.30618102]
[1772803223016,40.4675739,86.489,86.451,1.30618102]
[1772803223323,11.56216397,86.489,86.453,1.30618102]
[1772803224027,40.4675739,86.489,86.453,1.30618102]
[1772803224405,11.56216397,86.489,86.453,1.30618102]
[1772803225021,28.90231162,86.499,86.452,11.56711238]
[1772803225022,40.46313891,86.499,86.455,1.30618102]
[1772803226205,11.56082729,86.499,86.455,1.30618102]
[1772803227028,11.56082729,86.499,86.457,1.30618102]
[1772803227416,40.46289552,86.499,86.457,1.30618102]
[1772803228529,40.46289552,86.499,86.456,40.48302025]
[1772803228530,40.46289552,86.499,86.459,1.30618102]
[1772803229124,8.53054279,86.49,86.459,1.30618102]
[1772803229315,8.53054279,86.49,86.45,1e-08]
[1772803229316,8.53054279,86.47,86.45,1e-08]
[1772803230718,40.47693392,86.469,86.45,1e-08]
[1772803230923,8.53054279,86.46,86.45,1e-08]
[1772803231130,8.53054279,86.46,86.426,1.30618102]
[1772803231649,8.53054279,86.46,86.421,12.87742287]